fUSD/lending_fUSD_20260115
["ID","MTS","AMOUNT","RATE_DAILY","PERIOD"]
[402082750,1768513856257,-684.8,0.00035616,10]
[402082751,1768513856266,-500.0,0.00035616,10]
[402082752,1768513856275,-500.0,0.00035616,10]
[402082753,1768513856285,-500.0,0.00035616,10]
[402082754,1768513856294,-1390.2,0.00035616,10]
[402082755,1768513856303,-500.0,0.00035616,10]
[402082756,1768513856312,-2194.04,0.00035616,10]
[402082757,1768513856322,-500.0,0.00035616,10]
[402082758,1768513856331,-500.0,0.00035616,10]
[402082759,1768513856340,-790.54,0.00035616,10]
[402082760,1768513856349,-500.0,0.00035616,10]
[402082761,1768513856358,-500.0,0.00035616,10]
[402082762,1768513856368,-500.0,0.00035616,10]
[402082763,1768513856377,-500.0,0.00035616,10]
[402082764,1768513856386,-568.81,0.00035616,10]
[402082765,1768513856395,-500.0,0.00035616,10]
[402082766,1768513856405,-500.0,0.00035616,10]
[402082767,1768513856414,-500.0,0.00035616,10]
[402082768,1768513856423,-500.0,0.00035616,10]
[402082769,1768513856434,-500.0,0.00035616,10]
[402082770,1768513856443,-652.85,0.00035616,10]
[402082771,1768513856453,-500.0,0.00035616,10]
[402082772,1768513856462,-500.0,0.00035616,10]
[402082773,1768513856471,-500.0,0.00035616,10]
[402082774,1768513856480,-500.0,0.00035616,10]
[402082775,1768513856491,-500.0,0.00035616,10]
[402082776,1768513856502,-741.09,0.00035616,10]
[402082777,1768513856512,-500.0,0.00035616,10]
[402082778,1768513856521,-500.0,0.00035616,10]
[402082779,1768513856532,-500.0,0.00035616,10]
[402082780,1768513856542,-583.75,0.00035616,10]
[402082781,1768513856552,-500.0,0.00035616,10]
[402082782,1768513856563,-518.83749218,0.00035616,10]
[402082783,1768513856572,-987.18,0.00035616,10]
[402082784,1768513856581,-518.40947982,0.00035616,10]
[402082785,1768513856590,-500.0,0.00035616,10]
[402082786,1768513856599,-1376.11,0.00035616,10]
[402082787,1768513856609,-1445.46,0.00035616,10]
[402082788,1768513856617,-1044.7,0.00035616,10]
[402082789,1768513856627,-835.56,0.00035616,10]
[402082790,1768513856637,-500.0,0.00035616,10]
[402082791,1768513856646,-2016.59,0.00035616,10]
[402082792,1768513856656,-500.0,0.00035616,10]
[402082793,1768513856666,-577.56424765,0.00035616,10]
[402082794,1768513856676,-755.36,0.00035616,10]
[402082795,1768513856687,-500.0,0.00035616,10]
[402082796,1768513856696,-500.0,0.00035616,10]
[402082797,1768513856706,-500.0,0.00035616,10]
[402082798,1768513856715,-500.0,0.00035616,10]
[402082799,1768513856726,-500.0,0.00035616,10]
[402082800,1768513856736,-601.6,0.00035616,10]
[402082801,1768513856745,-2727.77,0.00035616,10]
[402082802,1768513856757,-532.42,0.00035616,10]
[402082803,1768513856766,-983.33,0.00035616,10]
[402082804,1768513856775,-1668.59,0.00035616,10]
[402082805,1768513856784,-631.5,0.00035616,10]
[402082806,1768513856794,-601.58088791,0.00035616,10]
[402082807,1768513856805,-500.0,0.00035616,10]
[402082808,1768513856817,-4695.69,0.00035616,10]
[402082809,1768513856827,-1100.49,0.00035616,10]
[402082810,1768513856836,-500.0,0.00035616,10]
[402082811,1768513856846,-557.32,0.00035616,10]
[402082812,1768513856855,-583.61497009,0.00035616,10]
[402082813,1768513856864,-932.26,0.00035616,10]
[402082814,1768513856873,-500.0,0.00035616,10]
[402082815,1768513856882,-500.0,0.00035616,10]
[402082816,1768513856891,-500.0,0.00035616,10]
[402082817,1768513856901,-1067.17,0.00035616,10]
[402082818,1768513856910,-500.0,0.00035616,10]
[402082819,1768513856919,-1526.19,0.00035616,10]
[402082820,1768513856928,-326.30132751,0.00035616,10]
[402082821,1768513856937,-1422.12,0.00035616,10]
[402082822,1768513856946,-760.4,0.00035616,10]
[402082823,1768513856955,-524.9,0.00035616,10]
[402082824,1768513856965,-863.81,0.00035616,10]
[402082825,1768513856974,-797.66,0.00035616,10]
[402082826,1768513856984,-500.0,0.00035616,10]
[402082827,1768513856993,-500.0,0.00035616,10]
[402082828,1768513857005,-628.6,0.00035616,10]
[402082829,1768513857014,-690.55,0.00035616,10]
[402082830,1768513857029,-1363.87,0.00035616,10]
[402082831,1768513857038,-402.98381529,0.00035616,10]
[402082832,1768513857047,-500.0,0.00035616,10]
[402082833,1768513857056,-500.0,0.00035616,10]
[402082834,1768513857065,-197.16996848,0.00035616,10]
[402082835,1768513857074,-500.0,0.00035616,10]
[402082836,1768513857084,-500.0,0.00035616,10]
[402082837,1768513857093,-2129.44,0.00035616,10]
[402082838,1768513857103,-860.24,0.00035616,10]
[402082839,1768513857112,-500.0,0.00035616,10]
[402082840,1768513857121,-1118.08,0.00035616,10]
[402082841,1768513857131,-500.0,0.00035616,10]
[402082842,1768513857141,-1429.82,0.00035616,10]
[402082843,1768513857150,-320.15552325,0.00035616,10]
[402082844,1768513857159,-685.5,0.00035616,10]
[402082845,1768513857169,-630.07,0.00035616,10]
[402082846,1768513857178,-576.6,0.00035616,10]
[402082847,1768513857188,-577.75475583,0.00035616,10]
[402082848,1768513857197,-1986.59,0.00035616,10]
[402082849,1768513857206,-500.0,0.00035616,10]
[402082850,1768513857215,-500.0,0.00035616,10]
[402082851,1768513857224,-500.0,0.00035616,10]
[402082852,1768513857234,-1000.0,0.00035616,120]
[402082853,1768513857243,-636.18,0.00035616,10]
[402082854,1768513857252,-1000.0,0.00035616,120]
[402082855,1768513857262,-500.0,0.00035616,10]
[402082856,1768513857271,-1000.0,0.00035616,120]
[402082857,1768513857280,-1000.0,0.00035616,120]
[402082858,1768513857289,-1142.32,0.00035616,120]
[402082859,1768513857298,-850.91,0.00035616,10]
[402082860,1768513857308,-500.0,0.00035616,10]
[402082861,1768513857318,-5246.71,0.00035616,10]
[402082862,1768513857327,-2633.93,0.00035616,10]
[402082863,1768513857337,-150.978528,0.00035616,10]
[402082864,1768513857346,-2006.7,0.00035616,10]
[402082865,1768513857359,-667.25,0.00035616,10]
[402082866,1768513857368,-2603.47,0.00035616,10]
[402082867,1768513857378,-509.37,0.00035616,10]
[402082868,1768513857388,-500.0,0.00035616,10]
[402082869,1768513857397,-567.09155482,0.00035616,10]
[402082870,1768513857406,-500.0,0.00035616,10]
[402082871,1768513857415,-151.268681,0.00035616,10]
[402082872,1768513857425,-2348.51,0.00035616,10]
[402082873,1768513857434,-341.913828,0.00035616,7]
[402082874,1768513857443,-500.0,0.00035616,10]
[402082875,1768513857452,-500.0,0.00035616,10]
[402082876,1768513857461,-500.0,0.00035616,10]
[402082877,1768513857471,-895.79,0.00035616,10]
[402082878,1768513857481,-341.913828,0.00035616,7]
[402082879,1768513857490,-232.38313267,0.00035616,10]
[402082880,1768513857500,-668.82,0.00035616,10]
[402082881,1768513857510,-500.0,0.00035616,10]
[402082882,1768513857520,-1519.19,0.00035616,10]
[402082883,1768513857530,-179.128218,0.00035616,10]
[402082884,1768513857539,-1328.28,0.00035616,10]
[402082885,1768513857552,-341.913828,0.00035616,7]
[402082886,1768513857562,-783.23,0.00035616,10]
[402082887,1768513857571,-500.0,0.00035616,10]
[402082888,1768513857581,-504.98729009,0.00035616,10]
[402082889,1768513857590,-1413.15,0.00035616,10]
[402082890,1768513857600,-500.0,0.00035616,10]
[402082891,1768513857610,-341.913828,0.00035616,7]
[402082892,1768513857619,-500.0,0.00035616,10]
[402082893,1768513857628,-840.65,0.00035616,10]
[402082894,1768513857639,-500.0,0.00035616,10]
[402082895,1768513857648,-500.0,0.00035616,10]
[402082896,1768513857658,-500.0,0.00035616,10]
[402082897,1768513857668,-500.0,0.00035616,10]
[402082898,1768513857678,-1705.95,0.00035616,10]
[402082899,1768513857689,-938.59,0.00035616,10]
[402082900,1768513857698,-803.07,0.00035616,10]
[402082901,1768513857707,-1332.1,0.00035616,10]
[402082902,1768513857717,-1128.27,0.00035616,10]
[402082903,1768513857730,-1309.37,0.00035616,10]
[402082904,1768513857739,-1437.16,0.00035616,10]
[402082905,1768513857755,-500.0,0.00035616,10]
[402082906,1768513857764,-1123.15,0.00035616,10]
[402082907,1768513857774,-500.0,0.00035616,10]
[402082908,1768513857784,-1335.03,0.00035616,10]
[402082909,1768513857793,-683.45,0.00035616,10]
[402082910,1768513857803,-500.0,0.00035616,10]
[402082911,1768513857812,-670.65,0.00035616,10]
[402082912,1768513857823,-500.0,0.00035616,10]
[402082913,1768513857836,-500.0,0.00035616,10]
[402082914,1768513857845,-500.0,0.00035616,10]
[402082915,1768513857855,-500.0,0.00035616,10]
[402082916,1768513857864,-500.0,0.00035616,10]
[402082917,1768513857873,-500.0,0.00035616,10]
[402082918,1768513857884,-500.0,0.00035616,10]
[402082919,1768513857894,-500.0,0.00035616,10]
[402082920,1768513857904,-151.0,0.00035616,31]
[402082921,1768513857918,-1133.31,0.00035616,10]
[402082922,1768513857928,-500.0,0.00035616,10]
[402082923,1768513857937,-151.0,0.00035616,31]
[402082924,1768513857947,-500.0,0.00035616,10]
[402082925,1768513857959,-1946.55,0.00035616,10]
[402082926,1768513857970,-500.0,0.00035616,10]
[402082927,1768513857984,-508.87892613,0.00035616,10]
[402082928,1768513857994,-189.33700006,0.00035616,10]
[402082929,1768513858004,-1070.51,0.00035616,10]
[402082930,1768513858013,-500.0,0.00035616,10]
[402082931,1768513858023,-1465.48,0.00035616,10]
[402082932,1768513858032,-500.0,0.00035616,10]
[402082933,1768513858042,-2860.36,0.00035616,10]
[402082934,1768513858051,-500.0,0.00035616,10]
[402082935,1768513858060,-500.0,0.00035616,10]
[402082936,1768513858070,-2146.67,0.00035616,10]
[402082937,1768513858079,-500.0,0.00035616,10]
[402082938,1768513858089,-582.74,0.00035616,10]
[402082939,1768513858098,-500.0,0.00035616,10]
[402082940,1768513858107,-3340.23,0.00035616,10]
[402082941,1768513858116,-500.0,0.00035616,10]
[402082942,1768513858125,-500.0,0.00035616,10]
[402082943,1768513858135,-569.13980156,0.00035616,10]
[402082944,1768513858145,-3735.97,0.00035616,10]
[402082945,1768513858157,-1191.39,0.00035616,10]
[402082946,1768513858166,-500.0,0.00035616,10]
[402082947,1768513858176,-879.28,0.00035616,10]
[402082948,1768513858186,-1117.29,0.00035616,10]
[402082949,1768513858195,-500.0,0.00035616,10]
[402082950,1768513858205,-1118.19,0.00035616,10]
[402082951,1768513858215,-166.39922835,0.00035616,10]
[402082952,1768513858224,-500.0,0.00035616,10]
[402082953,1768513858235,-1654.57,0.00035616,10]
[402082954,1768513858245,-573.17,0.00035616,10]
[402082955,1768513858254,-500.0,0.00035616,10]
[402082956,1768513858264,-500.0,0.00035616,10]
[402082957,1768513858273,-524.99,0.00035616,10]
[402082958,1768513858283,-589.99,0.00035616,10]
[402082959,1768513858293,-500.0,0.00035616,10]
[402082960,1768513858302,-500.0,0.00035616,10]
[402082961,1768513858312,-500.0,0.00035616,10]
[402082962,1768513858321,-500.0,0.00035616,10]
[402082963,1768513858330,-500.0,0.00035616,10]
[402082964,1768513858340,-500.0,0.00035616,10]
[402082965,1768513858349,-1645.34,0.00035616,10]
[402082966,1768513858359,-500.0,0.00035616,10]
[402082967,1768513858368,-500.0,0.00035616,10]
[402082968,1768513858377,-792.01,0.00035616,10]
[402082969,1768513858387,-500.0,0.00035616,10]
[402082970,1768513858396,-500.0,0.00035616,10]
[402082971,1768513858406,-900.08,0.00035616,10]
[402082972,1768513858415,-500.0,0.00035616,10]
[402082973,1768513858424,-500.0,0.00035616,10]
[402082974,1768513858433,-500.0,0.00035616,10]
[402082975,1768513858443,-500.0,0.00035616,10]
[402082976,1768513858452,-2090.65,0.00035616,10]
[402082977,1768513858461,-1382.28,0.00035616,10]
[402082978,1768513858470,-1747.37,0.00035616,10]
[402082979,1768513858479,-1373.96,0.00035616,10]
[402082980,1768513858488,-500.0,0.00035616,10]
[402082981,1768513858498,-500.0,0.00035616,10]
[402082982,1768513858507,-954.84,0.00035616,10]
[402082983,1768513858516,-474.93076845,0.00035616,10]
[402082984,1768513858526,-500.0,0.00035616,10]
[402082985,1768513858545,-500.0,0.00035616,10]
[402082986,1768513858556,-930.34,0.00035616,10]
[402082987,1768513858566,-500.0,0.00035616,10]
[402082988,1768513858576,-1024.52,0.00035616,10]
[402082989,1768513858585,-3377.21,0.00035616,10]
[402082990,1768513858595,-500.0,0.00035616,10]
[402082991,1768513858604,-500.0,0.00035616,10]
[402082992,1768513858916,-500.0,0.00035616,10]
[402082993,1768513858926,-500.0,0.00035616,10]
[402082994,1768513858935,-353.82258907,0.00035616,10]
[402082995,1768513858944,-811.75,0.00035616,10]
[402082996,1768513858953,-500.0,0.00035616,10]
[402082997,1768513858962,-463.67953969,0.00035616,10]
[402082998,1768513858972,-382.0582518,0.00035616,10]
[402082999,1768513858981,-902.18,0.00035616,10]
[402083000,1768513858990,-500.0,0.00035616,10]
[402083001,1768513859003,-519.47733112,0.00035616,10]
[402083002,1768513859013,-500.0,0.00035616,10]
[402083003,1768513859022,-500.0,0.00035616,10]
[402083004,1768513859031,-500.0,0.00035616,10]
[402083005,1768513859040,-500.0,0.00035616,10]
[402083006,1768513859049,-1254.56,0.00035616,10]
[402083007,1768513859059,-1770.88,0.00035616,10]
[402083008,1768513859068,-892.59,0.00035616,10]
[402083009,1768513859077,-753.47,0.00035616,10]
[402083010,1768513859087,-533.07,0.00035616,10]
[402083011,1768513859096,-500.0,0.00035616,10]
[402083012,1768513859105,-561.67527192,0.00035616,10]
[402083013,1768513859114,-836.96,0.00035616,10]
[402083014,1768513859124,-801.65,0.00035616,10]
[402083015,1768513859134,-500.0,0.00035616,10]
[402083016,1768513859143,-1942.66,0.00035616,10]
[402083017,1768513859153,-500.0,0.00035616,10]
[402083018,1768513859163,-1406.09,0.00035616,10]
[402083019,1768513859172,-1000.0,0.00035616,120]
[402083020,1768513859182,-1000.0,0.00035616,120]
[402083021,1768513859191,-500.0,0.00035616,10]
[402083022,1768513859201,-500.0,0.00035616,10]
[402083023,1768513859212,-1000.0,0.00035616,120]
[402083024,1768513859222,-1289.39,0.00035616,10]
[402083025,1768513859233,-1000.0,0.00035616,120]
[402083026,1768513859243,-585.00984787,0.00035616,10]
[402083027,1768513859253,-500.0,0.00035616,10]
[402083028,1768513859264,-1032.1,0.00035616,10]
[402083029,1768513859274,-150.978528,0.00035616,10]
[402083030,1768513859285,-500.0,0.00035616,10]
[402083031,1768513859294,-2115.04,0.00035616,10]
[402083032,1768513859305,-500.0,0.00035616,10]
[402083033,1768513859315,-500.0,0.00035616,10]
[402083034,1768513859324,-500.0,0.00035616,10]
[402083035,1768513859334,-179.128213,0.00035616,10]
[402083036,1768513859344,-761.42,0.00035616,10]
[402083037,1768513859354,-1741.42,0.00035616,10]
[402083038,1768513859365,-500.0,0.00035616,10]
[402083039,1768513859375,-500.0,0.00035616,10]
[402083040,1768513859386,-500.0,0.00035616,10]
[402083041,1768513859396,-500.0,0.00035616,10]
[402083042,1768513859406,-500.0,0.00035616,10]
[402083043,1768513859415,-680.19,0.00035616,10]
[402083044,1768513859424,-529.58720005,0.00035616,10]
[402083045,1768513859434,-500.0,0.00035616,10]
[402083046,1768513859443,-1109.79,0.00035616,10]
[402083047,1768513859452,-1384.3,0.00035616,10]
[402083048,1768513859462,-538.55,0.00035616,10]
[402083049,1768513859472,-828.42,0.00035616,10]
[402083050,1768513859481,-500.0,0.00035616,10]
[402083051,1768513859490,-500.0,0.00035616,10]
[402083052,1768513859499,-638.9,0.00035616,10]
[402083053,1768513859508,-611.01,0.00035616,10]
[402083054,1768513859518,-500.0,0.00035616,10]
[402083055,1768513859527,-500.0,0.00035616,10]
[402083056,1768513859536,-500.0,0.00035616,10]
[402083057,1768513859545,-500.0,0.00035616,10]
[402083058,1768513859555,-500.0,0.00035616,10]
[402083059,1768513859564,-500.0,0.00035616,10]
[402083060,1768513859574,-295.95730883,0.00035616,10]
[402083061,1768513859583,-621.33760418,0.00035616,10]
[402083062,1768513859592,-500.0,0.00035616,10]
[402083063,1768513859602,-500.0,0.00035616,10]
[402083064,1768513859612,-500.0,0.00035616,10]
[402083065,1768513859622,-500.0,0.00035616,2]
[402083066,1768513859633,-500.0,0.00035616,10]
[402083067,1768513859643,-500.0,0.00035616,10]
[402083068,1768513859652,-500.0,0.00035616,10]
[402083069,1768513859661,-500.0,0.00035616,10]
[402083070,1768513859671,-1000.0,0.00035616,10]
[402083071,1768513859684,-896.1,0.00035616,10]
[402083072,1768513859695,-500.0,0.00035616,10]
[402083073,1768513859704,-1964.34,0.00035616,10]
[402083074,1768513859714,-500.0,0.00035616,10]
[402083075,1768513859725,-500.0,0.00035616,10]
[402083076,1768513859734,-500.0,0.00035616,10]
[402083077,1768513859743,-500.0,0.00035616,10]
[402083078,1768513859752,-500.0,0.00035616,10]
[402083079,1768513859763,-1287.3,0.00035616,10]
[402083080,1768513859772,-4820.8,0.00035616,10]
[402083081,1768513859781,-505.40475523,0.00035616,10]
[402083082,1768513859791,-2424.46,0.00035616,10]
[402083083,1768513859800,-500.0,0.00035616,10]
[402083084,1768513859811,-500.0,0.00035616,5]
[402083085,1768513859822,-200.0,0.00035616,120]
[402083086,1768513859832,-533.73,0.00035616,10]
[402083087,1768513859842,-500.0,0.00035616,10]
[402083088,1768513859851,-1654.03,0.00035616,10]
[402083089,1768513859862,-601.97,0.00035616,10]
[402083090,1768513859872,-500.0,0.00035616,10]
[402083091,1768513859882,-209.12987817,0.00035616,10]
[402083092,1768513859891,-300.0,0.00035616,2]
[402083093,1768513859901,-500.0,0.00035616,10]
[402083094,1768513859911,-1999.0,0.00035616,120]
[402083095,1768513859920,-500.0,0.00035616,10]
[402083096,1768513859929,-500.0,0.00035616,10]
[402083097,1768513859939,-619.60833687,0.00035616,10]
[402083098,1768513859949,-500.0,0.00035616,10]
[402083099,1768513859958,-500.0,0.00035616,10]
[402083100,1768513859968,-559.23431495,0.00035616,10]
[402083101,1768513859978,-500.0,0.00035616,10]
[402083102,1768513859988,-500.0,0.00035616,10]
[402083103,1768513859997,-500.0,0.00035616,10]
[402083104,1768513860007,-500.0,0.00035616,10]
[402083105,1768513860016,-500.0,0.00035616,10]
[402083106,1768513860026,-500.0,0.00035616,10]
[402083107,1768513860035,-600.0,0.00035616,2]
[402083108,1768513860047,-962.0,0.0003569,7]
[402083109,1768513860057,-463.05999061,0.00035699,30]
[402083110,1768513860066,-200.0,0.00035784,2]
[402083111,1768513860075,-740.696,0.00035789,2]
[402083112,1768513860084,-463.05999061,0.00035836,30]
[402083113,1768513860094,-150.0,0.00035857,2]
[402083114,1768513860103,-1000.0,0.0003589,2]
[402083115,1768513860112,-16930.20790661,0.0003589,10]
[402083116,1768513860122,-1000.0,0.0003589,2]
[402083117,1768513860131,-500.0,0.0003589,10]
[402083118,1768513860141,-500.0,0.0003589,10]
[402083119,1768513860151,-500.0,0.0003589,10]
[402083120,1768513860160,-500.0,0.0003589,10]
[402083121,1768513860170,-408.71233204,0.0003589,10]
[402083122,1768513860179,-400.0,0.0003589,10]
[402083123,1768513860189,-500.0,0.0003589,10]
[402083124,1768513860198,-436.41400499,0.0003589,10]
[402083125,1768513860208,-500.0,0.0003589,10]
[402083126,1768513860218,-500.0,0.0003589,10]
[402083127,1768513860228,-500.0,0.0003589,10]
[402083128,1768513860237,-500.0,0.0003589,10]
[402083129,1768513860247,-500.0,0.0003589,10]
[402083130,1768513860256,-500.0,0.0003589,10]
[402083131,1768513860266,-445.52294582,0.0003589,10]
[402083132,1768513860275,-500.0,0.0003589,10]
[402083133,1768513860285,-500.0,0.0003589,10]
[402083134,1768513860294,-500.0,0.0003589,10]
[402083135,1768513860304,-500.0,0.0003589,10]
[402083136,1768513860313,-500.0,0.0003589,10]
[402083137,1768513860323,-652.86,0.0003589,10]
[402083138,1768513860333,-500.0,0.0003589,10]
[402083139,1768513860343,-500.0,0.0003589,10]
[402083140,1768513860352,-1266.52,0.0003589,10]
[402083141,1768513860362,-892.57,0.0003589,10]
[402083142,1768513860371,-813.29,0.0003589,10]
[402083143,1768513860381,-682.77,0.0003589,10]
[402083144,1768513860391,-1119.69,0.0003589,10]
[402083145,1768513860400,-1056.64,0.0003589,10]
[402083146,1768513860410,-500.0,0.0003589,10]
[402083147,1768513860419,-601.79,0.0003589,10]
[402083148,1768513860429,-500.0,0.0003589,10]
[402083149,1768513860438,-500.0,0.0003589,10]
[402083150,1768513860448,-500.0,0.0003589,10]
[402083151,1768513860458,-500.0,0.0003589,10]
[402083152,1768513860467,-500.0,0.0003589,10]
[402083153,1768513860477,-500.0,0.0003589,10]
[402083154,1768513860486,-500.0,0.0003589,10]
[402083155,1768513860496,-1173.55,0.0003589,10]
[402083156,1768513860505,-649.61,0.0003589,10]
[402083157,1768513860515,-884.14,0.0003589,10]
[402083158,1768513860524,-500.0,0.0003589,10]
[402083159,1768513860534,-2067.04,0.0003589,10]
[402083160,1768513860543,-1819.51,0.0003589,10]
[402083161,1768513860552,-151.0,0.0003589,31]
[402083162,1768513860561,-500.0,0.0003589,10]
[402083163,1768513860570,-505.04,0.0003589,10]
[402083164,1768513860579,-500.0,0.0003589,10]
[402083165,1768513860589,-811.4,0.0003589,10]
[402083166,1768513860598,-304.84161417,0.0003589,10]
[402083167,1768513860607,-1253.39,0.0003589,10]
[402083168,1768513860616,-582.99,0.0003589,10]
[402083169,1768513860625,-500.0,0.0003589,10]
[402083170,1768513860634,-500.0,0.0003589,10]
[402083171,1768513860644,-500.0,0.0003589,10]
[402083172,1768513860654,-535.12,0.0003589,10]
[402083173,1768513860663,-1275.17,0.0003589,10]
[402083174,1768513860673,-500.0,0.0003589,10]
[402083175,1768513860685,-500.0,0.0003589,10]
[402083176,1768513860694,-500.0,0.0003589,10]
[402083177,1768513860704,-500.0,0.0003589,10]
[402083178,1768513860713,-473.63445031,0.0003589,10]
[402083179,1768513860723,-497.39899657,0.0003589,10]
[402083180,1768513860732,-500.0,0.0003589,10]
[402083181,1768513860742,-500.0,0.0003589,10]
[402083182,1768513860751,-500.0,0.0003589,10]
[402083183,1768513860762,-500.0,0.0003589,10]
[402083184,1768513860771,-992.6,0.0003589,10]
[402083185,1768513860780,-1512.3,0.0003589,10]
[402083186,1768513860790,-500.0,0.0003589,10]
[402083187,1768513860799,-528.71,0.0003589,10]
[402083188,1768513860810,-2082.8,0.0003589,10]
[402083189,1768513860819,-587.62563927,0.0003589,10]
[402083190,1768513860829,-608.64,0.0003589,10]
[402083191,1768513860838,-500.0,0.0003589,10]
[402083192,1768513860847,-226.49429499,0.0003589,10]
[402083193,1768513860856,-500.0,0.0003589,10]
[402083194,1768513860865,-720.67,0.0003589,10]
[402083195,1768513860875,-500.0,0.0003589,120]
[402083196,1768513860884,-963.63,0.0003589,10]
[402083197,1768513860895,-500.0,0.0003589,10]
[402083198,1768513860905,-501.0,0.0003589,10]
[402083199,1768513860915,-1187.11,0.0003589,10]
[402083200,1768513860924,-500.0,0.0003589,10]
[402083201,1768513860933,-500.0,0.0003589,10]
[402083202,1768513860943,-500.0,0.0003589,10]
[402083203,1768513860952,-500.0,0.0003589,10]
[402083204,1768513860961,-500.0,0.0003589,10]
[402083205,1768513860970,-802.28,0.0003589,10]
[402083206,1768513860979,-500.0,0.0003589,10]
[402083207,1768513860988,-574.87584551,0.0003589,10]
[402083208,1768513860997,-500.0,0.0003589,10]
[402083209,1768513861008,-728.92,0.0003589,10]
[402083210,1768513861017,-759.55,0.0003589,10]
[402083211,1768513861026,-151.0,0.0003589,31]
[402083212,1768513861035,-500.0,0.0003589,10]
[402083213,1768513861044,-500.0,0.0003589,10]
[402083214,1768513861053,-500.0,0.0003589,10]
[402083215,1768513861063,-500.0,0.0003589,10]
[402083216,1768513861072,-581.10517041,0.0003589,10]
[402083217,1768513861081,-500.0,0.0003589,10]
[402083218,1768513861090,-500.0,0.0003589,10]
[402083219,1768513861099,-486.44234255,0.0003589,10]
[402083220,1768513861109,-500.0,0.0003589,10]
[402083221,1768513861118,-500.0,0.0003589,10]
[402083222,1768513861128,-675.37,0.0003589,10]
[402083223,1768513861138,-1313.38,0.0003589,10]
[402083224,1768513861148,-729.41,0.0003589,10]
[402083225,1768513861157,-1552.11,0.0003589,10]
[402083226,1768513861167,-626.52595071,0.0003589,10]
[402083227,1768513861177,-690.01,0.0003589,10]
[402083228,1768513861187,-500.0,0.0003589,10]
[402083229,1768513861196,-500.0,0.0003589,10]
[402083230,1768513861206,-1166.43,0.0003589,10]
[402083231,1768513861216,-500.0,0.0003589,10]
[402083232,1768513861226,-500.8,0.0003589,10]
[402083233,1768513861235,-255.32723466,0.0003589,10]
[402083234,1768513861244,-500.0,0.0003589,10]
[402083235,1768513861254,-500.0,0.0003589,10]
[402083236,1768513861263,-500.0,0.0003589,10]
[402083237,1768513861273,-604.7,0.0003589,10]
[402083238,1768513861282,-1088.41,0.0003589,10]
[402083239,1768513861292,-500.0,0.0003589,10]
[402083240,1768513861301,-500.0,0.0003589,10]
[402083241,1768513861310,-500.0,0.0003589,10]
[402083242,1768513861320,-500.0,0.0003589,10]
[402083243,1768513861329,-778.94,0.0003589,10]
[402083244,1768513861339,-500.0,0.0003589,10]
[402083245,1768513861348,-500.0,0.0003589,10]
[402083246,1768513861358,-500.0,0.0003589,10]
[402083247,1768513861367,-500.0,0.0003589,10]
[402083248,1768513861376,-306.53305604,0.0003589,10]
[402083249,1768513861386,-500.0,0.0003589,10]